[Event "*** Titled Tuesday Blitz"]
[Site "Chess.com"]
[Date "2021.04.06"]
[Round "3"]
[White "Leonid_Starozhilov"]
[Black "GameOverBro"]
[Result "1-0"]
[WhiteElo "2728"]
[BlackElo "2517"]
[TimeControl "180+1"]
[EndTime "10:27:30 PDT"]
[Termination "Leonid_Starozhilov won by resignation"]

1. e4 {[%clk 0:03:00.9]} 1... d6 {[%clk 0:02:59]} 2. d4 {[%clk 0:02:59.5]} 2...
Nf6 {[%clk 0:02:59]} 3. Bd3 {[%clk 0:02:57.7]} 3... e5 {[%clk 0:02:59]} 4. Ne2
{[%clk 0:02:55.7]} 4... Nc6 {[%clk 0:02:49.9]} 5. d5 {[%clk 0:02:51.9]} 5... Ne7
{[%clk 0:02:49.6]} 6. c4 {[%clk 0:02:50.4]} 6... g6 {[%clk 0:02:49.2]} 7. Nbc3
{[%clk 0:02:50.2]} 7... Bg7 {[%clk 0:02:49.2]} 8. Ng3 {[%clk 0:02:49.3]} 8...
O-O {[%clk 0:02:45.6]} 9. h4 {[%clk 0:02:48.6]} 9... h5 {[%clk 0:02:45]} 10. Qc2
{[%clk 0:02:41.3]} 10... c6 {[%clk 0:02:42.5]} 11. Bg5 {[%clk 0:02:39.8]} 11...
cxd5 {[%clk 0:02:42.2]} 12. Nxd5 {[%clk 0:02:35.8]} 12... Nfxd5 {[%clk
0:02:36.4]} 13. cxd5 {[%clk 0:02:35.4]} 13... f6 {[%clk 0:02:32.1]} 14. Be3
{[%clk 0:02:33.7]} 14... Bd7 {[%clk 0:02:31.2]} 15. Qb3 {[%clk 0:02:27.2]} 15...
f5 {[%clk 0:02:19.1]} 16. Bg5 {[%clk 0:02:25.5]} 16... Bf6 {[%clk 0:02:00.9]}
17. exf5 {[%clk 0:02:21.3]} 17... Nxf5 {[%clk 0:01:49.3]} 18. Bxf5 {[%clk
0:02:14]} 18... Bxf5 {[%clk 0:01:47.1]} 19. Nxf5 {[%clk 0:01:50.7]} 19... gxf5
{[%clk 0:01:48]} 20. Qf3 {[%clk 0:01:22.9]} 20... Bxg5 {[%clk 0:01:27.6]} 21.
hxg5 {[%clk 0:01:22.5]} 21... Qxg5 {[%clk 0:01:26.6]} 22. Rxh5 {[%clk
0:01:19.8]} 22... Qg7 {[%clk 0:01:17.9]} 23. O-O-O {[%clk 0:01:10.4]} 23...
Rac8+ {[%clk 0:01:15]} 24. Kb1 {[%clk 0:01:10.8]} 24... Rc4 {[%clk 0:01:06.3]}
25. Rdh1 {[%clk 0:01:03.7]} 25... Rg4 {[%clk 0:01:06.1]} 26. a3 {[%clk
0:00:46.5]} 26... e4 {[%clk 0:00:27]} 27. Qe3 {[%clk 0:00:46.2]} 27... Rxg2
{[%clk 0:00:22.7]} 28. Rh8+ {[%clk 0:00:46]} 28... Qxh8 {[%clk 0:00:22.2]} 29.
Rxh8+ {[%clk 0:00:45.9]} 29... Kxh8 {[%clk 0:00:22.6]} 30. Qh3+ {[%clk
0:00:46.5]} 1-0

[Event "*** Titled Tuesday Blitz"]
[Site "Chess.com"]
[Date "2021.04.06"]
[Round "3"]
[White "RestartingChess"]
[Black "Guzman70"]
[Result "0-1"]
[WhiteElo "2525"]
[BlackElo "2344"]
[TimeControl "180+1"]
[EndTime "10:27:31 PDT"]
[Termination "Guzman70 won by checkmate"]

1. e4 {[%clk 0:03:00.9]} 1... c5 {[%clk 0:02:59.2]} 2. Nf3 {[%clk 0:03:01.4]}
2... Nc6 {[%clk 0:02:57.2]} 3. b4 {[%clk 0:03:01.4]} 3... Nxb4 {[%clk
0:02:46.1]} 4. c3 {[%clk 0:03:01.5]} 4... Nc6 {[%clk 0:02:45.7]} 5. d4 {[%clk
0:03:02.4]} 5... cxd4 {[%clk 0:02:45.9]} 6. cxd4 {[%clk 0:03:03.3]} 6... d6
{[%clk 0:02:37.7]} 7. d5 {[%clk 0:03:02.8]} 7... Ne5 {[%clk 0:02:36.1]} 8. Nxe5
{[%clk 0:03:03]} 8... dxe5 {[%clk 0:02:36]} 9. Bb2 {[%clk 0:03:03.6]} 9... e6
{[%clk 0:02:11.3]} 10. Bb5+ {[%clk 0:02:28.4]} 10... Bd7 {[%clk 0:02:10.7]} 11.
dxe6 {[%clk 0:02:27.7]} 11... Bxb5 {[%clk 0:01:48.3]} 12. exf7+ {[%clk
0:02:27.2]} 12... Kxf7 {[%clk 0:01:48.4]} 13. Qh5+ {[%clk 0:02:27.6]} 13... g6
{[%clk 0:01:21.6]} 14. Qxe5 {[%clk 0:02:24.5]} 14... Bb4+ {[%clk 0:01:17.5]} 15.
Nc3 {[%clk 0:02:18.2]} 15... Qd3 {[%clk 0:00:48.3]} 16. Qd5+ {[%clk 0:01:59.7]}
16... Qxd5 {[%clk 0:00:45.8]} 17. exd5 {[%clk 0:02:00.6]} 17... Rc8 {[%clk
0:00:39.6]} 18. Kd2 {[%clk 0:01:59.8]} 18... Nf6 {[%clk 0:00:38.1]} 19. Rac1
{[%clk 0:01:42.6]} 19... Ne4+ {[%clk 0:00:35.9]} 20. Kc2 {[%clk 0:01:39.2]}
20... Bxc3 {[%clk 0:00:34.5]} 21. Kb3 {[%clk 0:01:32.8]} 21... Bxb2 {[%clk
0:00:32.9]} 22. Kxb2 {[%clk 0:01:32.7]} 22... Rxc1 {[%clk 0:00:32]} 23. Rxc1
{[%clk 0:01:33.4]} 23... Rd8 {[%clk 0:00:31.3]} 24. Rc7+ {[%clk 0:01:33.3]}
24... Rd7 {[%clk 0:00:31]} 25. Rc8 {[%clk 0:01:33.9]} 25... Nxf2 {[%clk
0:00:30.3]} 26. Kc3 {[%clk 0:01:28.4]} 26... Ne4+ {[%clk 0:00:28.6]} 27. Kd4
{[%clk 0:01:28.4]} 27... Nd6 {[%clk 0:00:26]} 28. Rh8 {[%clk 0:01:28.4]} 28...
Kg7 {[%clk 0:00:25.3]} 29. Ra8 {[%clk 0:01:28.6]} 29... a6 {[%clk 0:00:19.2]}
30. Ke5 {[%clk 0:01:28.9]} 30... Nc4+ {[%clk 0:00:17.6]} 31. Ke4 {[%clk
0:01:25.5]} 31... Nb6 {[%clk 0:00:16.8]} 32. Rb8 {[%clk 0:01:22]} 32... Nxd5
{[%clk 0:00:16.5]} 33. a3 {[%clk 0:01:20.1]} 33... Bc6 {[%clk 0:00:16.5]} 34.
Ke5 {[%clk 0:01:19.8]} 34... Nf6 {[%clk 0:00:16.6]} 35. h3 {[%clk 0:01:18.6]}
35... Rd3 {[%clk 0:00:16.3]} 36. g4 {[%clk 0:01:17.3]} 36... Re3+ {[%clk
0:00:16.4]} 37. Kf4 {[%clk 0:01:17.6]} 37... Re4+ {[%clk 0:00:16.7]} 38. Kg3
{[%clk 0:01:17.5]} 38... Ra4 {[%clk 0:00:17.6]} 39. g5 {[%clk 0:01:17.4]} 39...
Ne4+ {[%clk 0:00:17.8]} 40. Kf4 {[%clk 0:01:17.5]} 40... Nd6+ {[%clk 0:00:17.9]}
41. Ke5 {[%clk 0:01:17.8]} 41... Nf5 {[%clk 0:00:18.3]} 42. Rc8 {[%clk
0:01:14.5]} 42... Re4# {[%clk 0:00:18.7]} 0-1

[Event "*** Titled Tuesday Blitz"]
[Site "Chess.com"]
[Date "2021.04.06"]
[Round "3"]
[White "Ural_bogatyr"]
[Black "AlphaHero0"]
[Result "0-1"]
[WhiteElo "2461"]
[BlackElo "2095"]
[TimeControl "180+1"]
[EndTime "10:27:31 PDT"]
[Termination "AlphaHero0 won by checkmate"]

1. e4 {[%clk 0:03:00.9]} 1... Nc6 {[%clk 0:03:00.3]} 2. Nf3 {[%clk 0:03:00.7]}
2... d6 {[%clk 0:03:00.3]} 3. d4 {[%clk 0:02:59.6]} 3... Nf6 {[%clk 0:03:00.4]}
4. Nc3 {[%clk 0:02:55]} 4... g6 {[%clk 0:03:00.6]} 5. Bc4 {[%clk 0:02:51.5]}
5... Bg7 {[%clk 0:03:00.2]} 6. h3 {[%clk 0:02:46.9]} 6... O-O {[%clk 0:02:58.8]}
7. Be3 {[%clk 0:02:44.8]} 7... Nxe4 {[%clk 0:02:49.6]} 8. Nxe4 {[%clk
0:02:40.2]} 8... d5 {[%clk 0:02:49.8]} 9. Bd3 {[%clk 0:02:38.1]} 9... dxe4
{[%clk 0:02:49.6]} 10. Bxe4 {[%clk 0:02:36.8]} 10... Qd6 {[%clk 0:02:39.6]} 11.
O-O {[%clk 0:02:29.3]} 11... Rd8 {[%clk 0:02:37.4]} 12. c3 {[%clk 0:02:26.8]}
12... e5 {[%clk 0:02:02.6]} 13. d5 {[%clk 0:02:21.9]} 13... Ne7 {[%clk
0:01:58.2]} 14. c4 {[%clk 0:02:22]} 14... b6 {[%clk 0:01:56.5]} 15. b4 {[%clk
0:02:02.7]} 15... f5 {[%clk 0:01:48.5]} 16. c5 {[%clk 0:01:52.2]} 16... Qf6
{[%clk 0:01:46]} 17. Bg5 {[%clk 0:01:45.5]} 17... Qf7 {[%clk 0:01:42.9]} 18.
Bxe7 {[%clk 0:01:43.3]} 18... fxe4 {[%clk 0:01:20]} 19. Bxd8 {[%clk 0:01:42.2]}
19... exf3 {[%clk 0:01:19.8]} 20. d6 {[%clk 0:01:34.9]} 20... Bb7 {[%clk
0:00:59.8]} 21. dxc7 {[%clk 0:01:28.2]} 21... fxg2 {[%clk 0:00:56.6]} 22. Re1
{[%clk 0:01:28.1]} 22... Bf3 {[%clk 0:00:42.4]} 23. Qd6 {[%clk 0:01:14.9]} 23...
Qf5 {[%clk 0:00:29.2]} 24. Qe7 {[%clk 0:00:43.6]} 24... Qxh3 {[%clk 0:00:19.9]}
25. Qh4 {[%clk 0:00:43.7]} 25... Qh1+ {[%clk 0:00:17.8]} 26. Qxh1 {[%clk
0:00:43.8]} 26... gxh1=Q# {[%clk 0:00:18.7]} 0-1

[Event "*** Titled Tuesday Blitz"]
[Site "Chess.com"]
[Date "2021.04.06"]
[Round "3"]
[White "GMJustin"]
[Black "gagtemp"]
[Result "1-0"]
[WhiteElo "2294"]
[BlackElo "1995"]
[TimeControl "180+1"]
[EndTime "10:27:31 PDT"]
[Termination "GMJustin won by resignation"]

1. e4 {[%clk 0:02:58.6]} 1... d5 {[%clk 0:02:58.7]} 2. exd5 {[%clk 0:02:56.7]}
2... Qxd5 {[%clk 0:02:59.6]} 3. Nf3 {[%clk 0:02:57]} 3... Bg4 {[%clk 0:02:58.6]}
4. Be2 {[%clk 0:02:57.1]} 4... Nc6 {[%clk 0:02:57.3]} 5. O-O {[%clk 0:02:55.5]}
5... O-O-O {[%clk 0:02:56.3]} 6. h3 {[%clk 0:02:51.1]} 6... Bh5 {[%clk
0:02:48.9]} 7. Nc3 {[%clk 0:02:37.2]} 7... Qe6 {[%clk 0:02:47.9]} 8. Ng5 {[%clk
0:02:14.5]} 8... Bxe2 {[%clk 0:02:42.4]} 9. Nxe6 {[%clk 0:02:13.4]} 9... Bxd1
{[%clk 0:02:42]} 10. Nxd8 {[%clk 0:02:13.3]} 10... Kxd8 {[%clk 0:02:36.3]} 11.
Nxd1 {[%clk 0:02:06.9]} 11... Nf6 {[%clk 0:02:33.4]} 12. d3 {[%clk 0:02:02.3]}
12... Nd4 {[%clk 0:02:29.9]} 13. Ne3 {[%clk 0:01:57.9]} 13... e5 {[%clk
0:02:28.2]} 14. Re1 {[%clk 0:01:52.2]} 14... Bc5 {[%clk 0:02:27]} 15. c3 {[%clk
0:01:51.6]} 15... Nc6 {[%clk 0:02:23.3]} 16. Nc4 {[%clk 0:01:45]} 16... Re8
{[%clk 0:02:21.5]} 17. b4 {[%clk 0:01:44.2]} 17... Bb6 {[%clk 0:02:17.2]} 18. b5
{[%clk 0:01:37.1]} 18... Na5 {[%clk 0:02:14.9]} 19. Rxe5 {[%clk 0:01:32.9]}
19... Nxc4 {[%clk 0:02:04.7]} 20. Rxe8+ {[%clk 0:01:32.1]} 20... Kxe8 {[%clk
0:02:02.4]} 21. dxc4 {[%clk 0:01:33]} 21... Kd7 {[%clk 0:01:48.6]} 22. Be3
{[%clk 0:01:25.7]} 22... Bxe3 {[%clk 0:01:46.6]} 23. fxe3 {[%clk 0:01:25.6]}
23... Kd6 {[%clk 0:01:46.8]} 24. Rd1+ {[%clk 0:01:20.5]} 24... Kc5 {[%clk
0:01:45.5]} 25. Rd4 {[%clk 0:01:20.1]} 25... c6 {[%clk 0:01:39.6]} 26. a4 {[%clk
0:01:18.8]} 26... a6 {[%clk 0:01:38.2]} 27. bxa6 {[%clk 0:01:12.1]} 27... bxa6
{[%clk 0:01:37.7]} 28. a5 {[%clk 0:01:12.4]} 28... h5 {[%clk 0:01:32.8]} 29. Kf2
{[%clk 0:01:11.5]} 29... g5 {[%clk 0:01:29.9]} 30. e4 {[%clk 0:01:07]} 30... Ne8
{[%clk 0:01:23.8]} 31. e5 {[%clk 0:01:02.1]} 31... Ng7 {[%clk 0:01:19.7]} 32.
Rd7 {[%clk 0:00:57]} 32... Ne6 {[%clk 0:01:14.3]} 33. Rxf7 {[%clk 0:00:55.5]}
33... Kxc4 {[%clk 0:01:14.6]} 34. Ke3 {[%clk 0:00:48.9]} 34... Kxc3 {[%clk
0:01:11]} 35. Rf6 {[%clk 0:00:40.1]} 35... Nd4 {[%clk 0:01:04.5]} 36. e6 {[%clk
0:00:37.2]} 36... Nc2+ {[%clk 0:00:54.5]} 37. Ke4 {[%clk 0:00:36.9]} 1-0

[Event "*** Titled Tuesday Blitz"]
[Site "Chess.com"]
[Date "2021.04.06"]
[Round "3"]
[White "vlad_Sid"]
[Black "Kiborg95"]
[Result "0-1"]
[WhiteElo "2594"]
[BlackElo "2811"]
[TimeControl "180+1"]
[EndTime "10:27:34 PDT"]
[Termination "Kiborg95 won by resignation"]

1. c4 {[%clk 0:03:00.9]} 1... d6 {[%clk 0:03:00.1]} 2. g3 {[%clk 0:03:01.3]}
2... e5 {[%clk 0:02:59.3]} 3. Bg2 {[%clk 0:03:01.4]} 3... f5 {[%clk 0:02:58.8]}
4. Nc3 {[%clk 0:03:01.7]} 4... Be7 {[%clk 0:02:59]} 5. Nf3 {[%clk 0:03:02.2]}
5... Nf6 {[%clk 0:02:55.4]} 6. O-O {[%clk 0:03:02.3]} 6... O-O {[%clk
0:02:55.6]} 7. Rb1 {[%clk 0:03:02.4]} 7... a5 {[%clk 0:02:53.5]} 8. a3 {[%clk
0:03:02.3]} 8... Qe8 {[%clk 0:02:51.2]} 9. b4 {[%clk 0:03:02]} 9... axb4 {[%clk
0:02:50.2]} 10. axb4 {[%clk 0:03:02.9]} 10... Bd8 {[%clk 0:02:43.7]} 11. d3
{[%clk 0:02:56.4]} 11... Qh5 {[%clk 0:02:39.4]} 12. b5 {[%clk 0:02:35]} 12... f4
{[%clk 0:02:32.2]} 13. Nd5 {[%clk 0:02:24.6]} 13... Bh3 {[%clk 0:02:20.5]} 14.
e3 {[%clk 0:02:01.6]} 14... fxg3 {[%clk 0:01:34.2]} 15. fxg3 {[%clk 0:02:01.1]}
15... Nxd5 {[%clk 0:01:26.8]} 16. cxd5 {[%clk 0:02:00.3]} 16... Bg4 {[%clk
0:01:27.3]} 17. e4 {[%clk 0:01:46.7]} 17... Nd7 {[%clk 0:01:20.9]} 18. Be3
{[%clk 0:01:44.8]} 18... Ra2 {[%clk 0:01:20.3]} 19. Rc1 {[%clk 0:01:08]} 19...
b6 {[%clk 0:01:04.1]} 20. Rc3 {[%clk 0:00:29]} 20... Rxg2+ {[%clk 0:01:03.4]}
21. Kxg2 {[%clk 0:00:28.4]} 21... Bh3+ {[%clk 0:01:03.4]} 22. Kf2 {[%clk
0:00:17.7]} 22... Bxf1 {[%clk 0:01:04.3]} 23. d4 {[%clk 0:00:10.4]} 23... Bh3
{[%clk 0:01:01.4]} 24. Bc1 {[%clk 0:00:05.8]} 24... Bg4 {[%clk 0:00:59.8]} 25.
Kg2 {[%clk 0:00:03.3]} 25... exd4 {[%clk 0:00:56.9]} 0-1

[Event "*** Titled Tuesday Blitz"]
[Site "Chess.com"]
[Date "2021.04.06"]
[Round "3"]
[White "Grieve72"]
[Black "Dyadya81"]
[Result "0-1"]
[WhiteElo "2494"]
[BlackElo "2716"]
[TimeControl "180+1"]
[EndTime "10:27:35 PDT"]
[Termination "Dyadya81 won by resignation"]

1. e4 {[%clk 0:03:00.9]} 1... c6 {[%clk 0:02:59.6]} 2. d4 {[%clk 0:03:00.8]}
2... d5 {[%clk 0:02:59.9]} 3. e5 {[%clk 0:03:01.4]} 3... Bf5 {[%clk 0:02:59.8]}
4. h4 {[%clk 0:03:01.9]} 4... h5 {[%clk 0:02:54.8]} 5. Bd3 {[%clk 0:03:01.7]}
5... Bxd3 {[%clk 0:02:54.3]} 6. Qxd3 {[%clk 0:03:02.6]} 6... e6 {[%clk
0:02:54.2]} 7. Bg5 {[%clk 0:03:01.6]} 7... Qa5+ {[%clk 0:02:54.5]} 8. Nd2 {[%clk
0:02:57]} 8... Nh6 {[%clk 0:02:52.9]} 9. Nf3 {[%clk 0:02:49.2]} 9... Nf5 {[%clk
0:02:51.9]} 10. O-O {[%clk 0:02:45]} 10... Nd7 {[%clk 0:02:50.3]} 11. Rfd1
{[%clk 0:02:40.4]} 11... Be7 {[%clk 0:02:47.6]} 12. Bxe7 {[%clk 0:02:32]} 12...
Nxe7 {[%clk 0:02:47.1]} 13. c4 {[%clk 0:02:30.7]} 13... O-O {[%clk 0:02:33.5]}
14. b3 {[%clk 0:02:27.5]} 14... Nf5 {[%clk 0:02:27.3]} 15. Nf1 {[%clk
0:02:26.7]} 15... Rad8 {[%clk 0:02:20.6]} 16. Ne3 {[%clk 0:02:21.3]} 16... dxc4
{[%clk 0:02:16.9]} 17. bxc4 {[%clk 0:02:17.3]} 17... Nxe5 {[%clk 0:02:04.8]} 18.
Nxe5 {[%clk 0:01:00.8]} 18... Rxd4 {[%clk 0:02:04]} 19. Qxd4 {[%clk 0:00:19.3]}
19... Nxd4 {[%clk 0:02:02.4]} 20. Nd7 {[%clk 0:00:20.2]} 20... Ne2+ {[%clk
0:01:47.3]} 21. Kf1 {[%clk 0:00:20.1]} 21... Nc3 {[%clk 0:01:46.9]} 22. Rd3
{[%clk 0:00:10.4]} 22... Rd8 {[%clk 0:01:42.1]} 23. a3 {[%clk 0:00:06.3]} 23...
Nd5 {[%clk 0:01:32.1]} 24. Nxd5 {[%clk 0:00:03.5]} 24... cxd5 {[%clk 0:01:28.9]}
25. Ne5 {[%clk 0:00:03.9]} 25... f6 {[%clk 0:01:20.7]} 26. Ng6 {[%clk
0:00:02.1]} 26... dxc4 {[%clk 0:01:17.5]} 27. Rg3 {[%clk 0:00:02.4]} 27... c3
{[%clk 0:01:15.2]} 28. Rc1 {[%clk 0:00:02]} 28... c2 {[%clk 0:01:11.8]} 29. Rxc2
{[%clk 0:00:02.5]} 29... Qb5+ {[%clk 0:01:10]} 30. Ke1 {[%clk 0:00:01.8]} 30...
Qb1+ {[%clk 0:01:09.1]} 0-1

[Event "*** Titled Tuesday Blitz"]
[Site "Chess.com"]
[Date "2021.04.06"]
[Round "3"]
[White "Agibileg"]
[Black "Handszar"]
[Result "1-0"]
[WhiteElo "2557"]
[BlackElo "2367"]
[TimeControl "180+1"]
[EndTime "10:27:48 PDT"]
[Termination "Agibileg won on time"]

1. d4 {[%clk 0:03:00.9]} 1... Nf6 {[%clk 0:02:57.2]} 2. c4 {[%clk 0:03:01.3]}
2... c5 {[%clk 0:02:57.3]} 3. d5 {[%clk 0:03:01.5]} 3... b5 {[%clk 0:02:57.4]}
4. cxb5 {[%clk 0:03:02.4]} 4... a6 {[%clk 0:02:57.6]} 5. b6 {[%clk 0:03:02.9]}
5... d6 {[%clk 0:02:56.8]} 6. Nc3 {[%clk 0:03:03.3]} 6... Nbd7 {[%clk
0:02:56.7]} 7. a4 {[%clk 0:03:03]} 7... a5 {[%clk 0:02:53.7]} 8. e4 {[%clk
0:03:00.1]} 8... g6 {[%clk 0:02:51.7]} 9. Nf3 {[%clk 0:03:00.4]} 9... Bg7 {[%clk
0:02:50.7]} 10. Nd2 {[%clk 0:03:00.7]} 10... O-O {[%clk 0:02:48]} 11. Be2 {[%clk
0:02:58.6]} 11... Nxb6 {[%clk 0:02:43.4]} 12. O-O {[%clk 0:02:58.5]} 12... Ba6
{[%clk 0:02:27]} 13. Bxa6 {[%clk 0:02:57.4]} 13... Rxa6 {[%clk 0:02:27.9]} 14.
Qc2 {[%clk 0:02:48.3]} 14... c4 {[%clk 0:02:04.3]} 15. Nb5 {[%clk 0:02:42.1]}
15... Qc8 {[%clk 0:01:53.2]} 16. Ra3 {[%clk 0:02:29.1]} 16... Nfd7 {[%clk
0:01:50.8]} 17. Nf3 {[%clk 0:02:06.8]} 17... Qc5 {[%clk 0:01:48.3]} 18. Be3
{[%clk 0:02:03.6]} 18... Qb4 {[%clk 0:01:33.1]} 19. Bd4 {[%clk 0:02:02.8]} 19...
Nc5 {[%clk 0:01:25.9]} 20. Bc3 {[%clk 0:01:56.9]} 20... Bxc3 {[%clk 0:00:30.9]}
21. bxc3 {[%clk 0:01:56.1]} 21... Qb3 {[%clk 0:00:30.9]} 22. Rxb3 {[%clk
0:01:55.3]} 22... cxb3 {[%clk 0:00:31.8]} 23. Qc1 {[%clk 0:01:52]} 23... Nbxa4
{[%clk 0:00:30.1]} 24. Qh6 {[%clk 0:01:50.4]} 24... f6 {[%clk 0:00:28.1]} 25.
Nc7 {[%clk 0:01:48.5]} 25... Rb6 {[%clk 0:00:25.2]} 26. Qe3 {[%clk 0:01:02.4]}
26... b2 {[%clk 0:00:24.6]} 27. Rb1 {[%clk 0:01:02.7]} 27... Rb3 {[%clk
0:00:23.8]} 28. h3 {[%clk 0:00:54.6]} 1-0

[Event "*** Titled Tuesday Blitz"]
[Site "Chess.com"]
[Date "2021.04.06"]
[Round "3"]
[White "Redzishchess"]
[Black "Bulldog167"]
[Result "0-1"]
[WhiteElo "2354"]
[BlackElo "2784"]
[TimeControl "180+1"]
[EndTime "10:27:53 PDT"]
[Termination "Bulldog167 won by resignation"]

1. d4 {[%clk 0:03:00.9]} 1... f5 {[%clk 0:02:59]} 2. g3 {[%clk 0:02:57.7]} 2...
Nf6 {[%clk 0:02:59.2]} 3. Bg2 {[%clk 0:02:58.2]} 3... d5 {[%clk 0:02:57.8]} 4.
Nf3 {[%clk 0:02:56.8]} 4... e6 {[%clk 0:02:58.3]} 5. O-O {[%clk 0:02:56.9]} 5...
Bd6 {[%clk 0:02:57.8]} 6. c4 {[%clk 0:02:57.8]} 6... c6 {[%clk 0:02:57.5]} 7.
Nbd2 {[%clk 0:02:58.1]} 7... O-O {[%clk 0:02:57.5]} 8. b3 {[%clk 0:02:58.6]}
8... Nbd7 {[%clk 0:02:57.6]} 9. Bb2 {[%clk 0:02:58.9]} 9... Ne4 {[%clk
0:02:56.7]} 10. Qc2 {[%clk 0:02:58.6]} 10... Qe7 {[%clk 0:02:54.5]} 11. a3
{[%clk 0:02:34.9]} 11... b6 {[%clk 0:02:53.7]} 12. b4 {[%clk 0:02:16.1]} 12...
Bb7 {[%clk 0:02:42.5]} 13. Ne5 {[%clk 0:02:10.6]} 13... Rac8 {[%clk 0:02:19.7]}
14. Nxd7 {[%clk 0:01:13.5]} 14... Qxd7 {[%clk 0:02:20.6]} 15. Nxe4 {[%clk
0:01:13.8]} 15... fxe4 {[%clk 0:02:20.3]} 16. c5 {[%clk 0:01:14.3]} 16... bxc5
{[%clk 0:01:55.9]} 17. bxc5 {[%clk 0:01:15.2]} 17... Be7 {[%clk 0:01:26.6]} 18.
f4 {[%clk 0:01:15]} 18... Ba6 {[%clk 0:01:24.4]} 19. Bc3 {[%clk 0:01:02.4]}
19... Rb8 {[%clk 0:01:24.2]} 20. Rfb1 {[%clk 0:00:58.7]} 20... Bc4 {[%clk
0:01:23.5]} 21. Bf1 {[%clk 0:00:48.1]} 21... g5 {[%clk 0:01:21]} 22. e3 {[%clk
0:00:45.7]} 22... gxf4 {[%clk 0:01:20.4]} 23. Bxc4 {[%clk 0:00:42.2]} 23... dxc4
{[%clk 0:01:17.6]} 24. exf4 {[%clk 0:00:23.1]} 24... Qd5 {[%clk 0:01:14.1]} 25.
Rb4 {[%clk 0:00:17.8]} 25... a5 {[%clk 0:01:06.7]} 26. Rb2 {[%clk 0:00:17.3]}
26... Rb3 {[%clk 0:01:04.5]} 27. Rab1 {[%clk 0:00:04.6]} 27... a4 {[%clk
0:00:54]} 28. Kf2 {[%clk 0:00:03.9]} 28... Bf6 {[%clk 0:00:48.9]} 29. Ke3 {[%clk
0:00:04]} 29... Qxd4+ {[%clk 0:00:48.3]} 30. Ke2 {[%clk 0:00:03.8]} 30... Rxc3
{[%clk 0:00:48.6]} 0-1

[Event "*** Titled Tuesday Blitz"]
[Site "Chess.com"]
[Date "2021.04.06"]
[Round "3"]
[White "viktorgen2021"]
[Black "Alex_Molchanov"]
[Result "1-0"]
[WhiteElo "2277"]
[BlackElo "2502"]
[TimeControl "180+1"]
[EndTime "10:27:55 PDT"]
[Termination "viktorgen2021 won on time"]

1. d4 {[%clk 0:03:00.9]} 1... Nf6 {[%clk 0:02:59]} 2. Nf3 {[%clk 0:03:01]} 2...
g6 {[%clk 0:02:59.2]} 3. g3 {[%clk 0:03:00.9]} 3... Bg7 {[%clk 0:02:58.8]} 4.
Bg2 {[%clk 0:03:01.5]} 4... O-O {[%clk 0:02:59]} 5. O-O {[%clk 0:03:02.1]} 5...
d6 {[%clk 0:02:58.7]} 6. a4 {[%clk 0:03:02.5]} 6... c6 {[%clk 0:02:24.4]} 7. Nc3
{[%clk 0:03:01.1]} 7... Nbd7 {[%clk 0:02:24.1]} 8. e4 {[%clk 0:03:00.7]} 8... e5
{[%clk 0:02:16.8]} 9. h3 {[%clk 0:02:59.9]} 9... Qc7 {[%clk 0:02:10.1]} 10. Re1
{[%clk 0:02:59]} 10... a5 {[%clk 0:01:58.9]} 11. Be3 {[%clk 0:02:57.6]} 11...
Re8 {[%clk 0:01:55.6]} 12. Qd2 {[%clk 0:02:53.1]} 12... b6 {[%clk 0:01:49.7]}
13. Rad1 {[%clk 0:02:50.9]} 13... d5 {[%clk 0:01:14.9]} 14. exd5 {[%clk
0:02:29.6]} 14... e4 {[%clk 0:01:15.1]} 15. dxc6 {[%clk 0:02:23]} 15... exf3
{[%clk 0:01:07.9]} 16. cxd7 {[%clk 0:02:21.8]} 16... Bxd7 {[%clk 0:01:08.3]} 17.
Bxf3 {[%clk 0:02:20.6]} 17... Bxh3 {[%clk 0:01:06.7]} 18. Bxa8 {[%clk
0:02:17.9]} 18... Rxa8 {[%clk 0:01:07.6]} 19. Bf4 {[%clk 0:02:15.1]} 19... Qb7
{[%clk 0:01:02.3]} 20. d5 {[%clk 0:02:14.9]} 20... Rd8 {[%clk 0:01:02.1]} 21.
Qd3 {[%clk 0:02:09]} 21... Bf5 {[%clk 0:00:51.9]} 22. Qe3 {[%clk 0:01:57]} 22...
Bxc2 {[%clk 0:00:34.3]} 23. Rd2 {[%clk 0:01:54.9]} 23... Bf5 {[%clk 0:00:34.7]}
24. f3 {[%clk 0:01:53.3]} 24... h5 {[%clk 0:00:23.6]} 25. Red1 {[%clk
0:01:51.9]} 25... Bf8 {[%clk 0:00:22.3]} 26. Kg2 {[%clk 0:01:51.4]} 26... Bc5
{[%clk 0:00:22.1]} 27. Qe5 {[%clk 0:01:51.4]} 27... Nd7 {[%clk 0:00:20.4]} 28.
Qe2 {[%clk 0:01:48.4]} 28... Bb4 {[%clk 0:00:18.1]} 29. g4 {[%clk 0:01:41.4]}
29... hxg4 {[%clk 0:00:14.5]} 30. fxg4 {[%clk 0:01:42.3]} 30... Bxc3 {[%clk
0:00:07.3]} 31. bxc3 {[%clk 0:01:43.2]} 31... Bxg4 {[%clk 0:00:03.6]} 32. Qxg4
{[%clk 0:01:42.5]} 32... Nf6 {[%clk 0:00:04.3]} 33. Qf3 {[%clk 0:01:42.5]} 33...
Nh5 {[%clk 0:00:03.7]} 34. c4 {[%clk 0:01:42]} 34... Rc8 {[%clk 0:00:03]} 35.
Rd4 {[%clk 0:01:38.8]} 35... Qd7 {[%clk 0:00:03.3]} 36. Bg3 {[%clk 0:01:38.2]}
36... Ng7 {[%clk 0:00:03.4]} 37. Re4 {[%clk 0:01:36.5]} 37... Nf5 {[%clk
0:00:03.7]} 38. Rde1 {[%clk 0:01:36.7]} 38... Qxa4 {[%clk 0:00:03.7]} 39. Qe2
{[%clk 0:01:30.7]} 39... Qd7 {[%clk 0:00:03.2]} 40. Re8+ {[%clk 0:01:29.8]}
40... Kh7 {[%clk 0:00:03.8]} 41. Rxc8 {[%clk 0:01:29.7]} 41... Qxc8 {[%clk
0:00:04.7]} 42. Rh1+ {[%clk 0:01:29.9]} 42... Kg8 {[%clk 0:00:03.9]} 43. Qe5
{[%clk 0:01:29.5]} 43... Ng7 {[%clk 0:00:01.6]} 44. Re1 {[%clk 0:01:27.5]} 44...
a4 {[%clk 0:00:01.1]} 45. Qc3 {[%clk 0:01:22.6]} 1-0